[Event "Late-Titled-Tuesday-Blitz-June-18-2024"]
[Site "Chess.com"]
[Date "2024.06.18"]
[Round "7"]
[White "LoonsDeKoeben"]
[Black "bob1263"]
[Result "0-1"]
[WhiteElo "2407"]
[BlackElo "2519"]
[TimeControl "180+1"]
[EndTime "15:21:07 PDT"]
[Termination "bob1263 won by checkmate"]

1. Nf3 {[%clk 0:03:00.9]} 1... d5 {[%clk 0:02:58.5]} 2. e3 {[%clk 0:02:58.2]}
2... Nf6 {[%clk 0:02:56.9]} 3. b3 {[%clk 0:02:58.4]} 3... Bg4 {[%clk 0:02:54.4]}
4. Bb2 {[%clk 0:02:55.6]} 4... e6 {[%clk 0:02:53.3]} 5. Be2 {[%clk 0:02:54.6]}
5... Nbd7 {[%clk 0:02:53.2]} 6. d3 {[%clk 0:02:47.3]} 6... c6 {[%clk 0:02:52.4]}
7. h3 {[%clk 0:02:41.6]} 7... Bh5 {[%clk 0:02:51.2]} 8. g4 {[%clk 0:02:42.1]}
8... Bg6 {[%clk 0:02:50.4]} 9. Ne5 {[%clk 0:02:42.6]} 9... Nxe5 {[%clk
0:02:46.6]} 10. Bxe5 {[%clk 0:02:43.5]} 10... Bd6 {[%clk 0:02:23.1]} 11. Bb2
{[%clk 0:02:27.8]} 11... e5 {[%clk 0:02:21]} 12. Nd2 {[%clk 0:02:25.9]} 12...
Qe7 {[%clk 0:02:05.1]} 13. g5 {[%clk 0:02:24.7]} 13... Nd7 {[%clk 0:02:03.1]}
14. h4 {[%clk 0:02:24.7]} 14... Bf5 {[%clk 0:02:01.5]} 15. Bh5 {[%clk
0:02:23.9]} 15... O-O {[%clk 0:01:58.5]} 16. Bg4 {[%clk 0:02:23.7]} 16... Qe6
{[%clk 0:01:54.1]} 17. Bxf5 {[%clk 0:02:19.7]} 17... Qxf5 {[%clk 0:01:54.2]} 18.
Qf3 {[%clk 0:02:19.2]} 18... Qe6 {[%clk 0:01:52.1]} 19. Qh3 {[%clk 0:02:16.6]}
19... Qxh3 {[%clk 0:01:48]} 20. Rxh3 {[%clk 0:02:16.4]} 20... a5 {[%clk
0:01:46.9]} 21. a3 {[%clk 0:02:15.6]} 21... a4 {[%clk 0:01:43.9]} 22. b4 {[%clk
0:02:15.6]} 22... c5 {[%clk 0:01:41.6]} 23. b5 {[%clk 0:02:02.6]} 23... f5
{[%clk 0:01:31.1]} 24. gxf6 {[%clk 0:01:56]} 24... gxf6 {[%clk 0:01:30.3]} 25.
c4 {[%clk 0:01:54.8]} 25... Nb6 {[%clk 0:01:22.1]} 26. cxd5 {[%clk 0:01:53.5]}
26... Nxd5 {[%clk 0:01:21.3]} 27. Nc4 {[%clk 0:01:52.8]} 27... Be7 {[%clk
0:01:13.9]} 28. h5 {[%clk 0:01:52]} 28... Kf7 {[%clk 0:01:13.3]} 29. Ke2 {[%clk
0:01:31.8]} 29... Rg8 {[%clk 0:01:12.2]} 30. Rd1 {[%clk 0:01:14]} 30... Ke6
{[%clk 0:01:10.8]} 31. Kf3 {[%clk 0:01:11.6]} 31... Rg7 {[%clk 0:01:03.7]} 32.
Rhh1 {[%clk 0:01:08.6]} 32... Rag8 {[%clk 0:01:02.5]} 33. d4 {[%clk 0:01:06.1]}
33... cxd4 {[%clk 0:00:59.5]} 34. exd4 {[%clk 0:01:06.4]} 34... Rg4 {[%clk
0:00:59.4]} 35. Ne3 {[%clk 0:00:50.9]} 35... e4+ {[%clk 0:00:41.2]} 36. Ke2
{[%clk 0:00:49.5]} 36... Nxe3 {[%clk 0:00:35.6]} 37. Kxe3 {[%clk 0:00:48.8]}
37... Kd5 {[%clk 0:00:34.5]} 38. Rc1 {[%clk 0:00:41]} 38... Bd6 {[%clk
0:00:33.3]} 39. Ke2 {[%clk 0:00:39.5]} 39... f5 {[%clk 0:00:32.6]} 40. Rc3
{[%clk 0:00:39.7]} 40... f4 {[%clk 0:00:31.6]} 41. Kd1 {[%clk 0:00:20.7]} 41...
Rg1+ {[%clk 0:00:20]} 42. Rxg1 {[%clk 0:00:20.7]} 42... Rxg1+ {[%clk 0:00:19.7]}
43. Kc2 {[%clk 0:00:14.5]} 43... Rg2 {[%clk 0:00:19]} 44. Rc8 {[%clk 0:00:14.9]}
44... Rxf2+ {[%clk 0:00:18.3]} 45. Kc1 {[%clk 0:00:14]} 45... e3 {[%clk
0:00:17]} 46. Bc3 {[%clk 0:00:08.8]} 46... e2 {[%clk 0:00:15.7]} 47. Kd2 {[%clk
0:00:08.2]} 47... f3 {[%clk 0:00:15.1]} 48. Re8 {[%clk 0:00:04]} 48... Rf1
{[%clk 0:00:14.7]} 49. Kc2 {[%clk 0:00:04.2]} 49... Bg3 {[%clk 0:00:13.1]} 50.
Bd2 {[%clk 0:00:02.6]} 50... e1=Q {[%clk 0:00:11.9]} 51. Bxe1 {[%clk 0:00:03.5]}
51... Rxe1 {[%clk 0:00:11.7]} 52. Rf8 {[%clk 0:00:02]} 52... f2 {[%clk
0:00:11.6]} 53. Rf5+ {[%clk 0:00:02.1]} 53... Ke4 {[%clk 0:00:10.9]} 54. Rf8
{[%clk 0:00:01.4]} 54... f1=Q {[%clk 0:00:10.7]} 55. Rxf1 {[%clk 0:00:02.3]}
55... Rxf1 {[%clk 0:00:10.4]} 56. d5 {[%clk 0:00:03.2]} 56... Rf5 {[%clk
0:00:10.4]} 57. b6 {[%clk 0:00:04.1]} 57... Rxd5 {[%clk 0:00:10.6]} 58. h6
{[%clk 0:00:05]} 58... Rd6 {[%clk 0:00:10.7]} 59. Kc3 {[%clk 0:00:05.9]} 59...
Rxb6 {[%clk 0:00:10.9]} 60. Kc4 {[%clk 0:00:06.1]} 60... Rxh6 {[%clk 0:00:11.4]}
61. Kb5 {[%clk 0:00:07]} 61... Rc6 {[%clk 0:00:11.4]} 62. Kb4 {[%clk 0:00:07.9]}
62... Kd4 {[%clk 0:00:10.8]} 63. Kb5 {[%clk 0:00:08.8]} 63... Kd3 {[%clk
0:00:10.3]} 64. Ka5 {[%clk 0:00:09.7]} 64... Rc4 {[%clk 0:00:09.5]} 65. Kb5
{[%clk 0:00:10.6]} 65... Rc3 {[%clk 0:00:09.8]} 66. Ka5 {[%clk 0:00:11.5]} 66...
Rxa3 {[%clk 0:00:09.8]} 67. Kb4 {[%clk 0:00:12.4]} 67... Rb3+ {[%clk 0:00:10]}
68. Ka5 {[%clk 0:00:09.8]} 68... Rb1 {[%clk 0:00:09.9]} 69. Kxa4 {[%clk
0:00:10.7]} 69... Kc4 {[%clk 0:00:08.9]} 70. Ka3 {[%clk 0:00:11]} 70... Bb8
{[%clk 0:00:07.3]} 71. Ka2 {[%clk 0:00:11.2]} 71... Rb6 {[%clk 0:00:07]} 72. Ka3
{[%clk 0:00:10.8]} 72... Rb5 {[%clk 0:00:05.7]} 73. Ka4 {[%clk 0:00:10.5]} 73...
Bc7 {[%clk 0:00:05.9]} 74. Ka3 {[%clk 0:00:10.4]} 74... Rb6 {[%clk 0:00:05.5]}
75. Ka2 {[%clk 0:00:09.9]} 75... Kc3 {[%clk 0:00:05.7]} 76. Ka1 {[%clk
0:00:09.2]} 76... Kc2 {[%clk 0:00:05.1]} 77. Ka2 {[%clk 0:00:09.6]} 77... Ra6#
{[%clk 0:00:05]} 0-1

[Event "Late-Titled-Tuesday-Blitz-June-18-2024"]
[Site "Chess.com"]
[Date "2024.06.18"]
[Round "7"]
[White "Zurability"]
[Black "jcibarra"]
[Result "1/2-1/2"]
[WhiteElo "2816"]
[BlackElo "3009"]
[TimeControl "180+1"]
[EndTime "15:21:12 PDT"]
[Termination "Game drawn by repetition"]

1. e4 {[%clk 0:03:00.6]} 1... c5 {[%clk 0:02:56.3]} 2. Nf3 {[%clk 0:03:00.4]}
2... Nc6 {[%clk 0:02:55.4]} 3. Bb5 {[%clk 0:02:57.2]} 3... e6 {[%clk 0:02:55.6]}
4. O-O {[%clk 0:02:57.1]} 4... Nd4 {[%clk 0:02:56.2]} 5. Nxd4 {[%clk 0:02:53.3]}
5... cxd4 {[%clk 0:02:57.1]} 6. c3 {[%clk 0:02:54]} 6... a6 {[%clk 0:02:56.6]}
7. Ba4 {[%clk 0:02:49]} 7... Bc5 {[%clk 0:02:57.1]} 8. Qg4 {[%clk 0:02:45.9]}
8... Qf6 {[%clk 0:02:38.8]} 9. b4 {[%clk 0:02:31.3]} 9... Ba7 {[%clk 0:02:31.1]}
10. Bb2 {[%clk 0:02:31.3]} 10... Ne7 {[%clk 0:02:26.8]} 11. Na3 {[%clk
0:02:23.6]} 11... b5 {[%clk 0:02:25.5]} 12. Bb3 {[%clk 0:02:23.4]} 12... Nc6
{[%clk 0:02:24.4]} 13. Nc2 {[%clk 0:02:21.8]} 13... d3 {[%clk 0:02:18.6]} 14.
Ne3 {[%clk 0:02:16.6]} 14... Bb7 {[%clk 0:02:10.7]} 15. Qg3 {[%clk 0:01:54.1]}
15... Ne7 {[%clk 0:01:37.7]} 16. e5 {[%clk 0:01:15.7]} 16... Qg6 {[%clk
0:01:30.8]} 17. a4 {[%clk 0:01:15.8]} 17... O-O {[%clk 0:01:25.3]} 18. c4 {[%clk
0:01:11]} 18... Nc6 {[%clk 0:01:05.6]} 19. axb5 {[%clk 0:01:07.1]} 19... axb5
{[%clk 0:01:05.2]} 20. cxb5 {[%clk 0:01:04.7]} 20... Nd4 {[%clk 0:01:05.5]} 21.
Qxg6 {[%clk 0:01:00.6]} 21... fxg6 {[%clk 0:00:43.9]} 22. Bc4 {[%clk 0:00:59.6]}
22... Nc2 {[%clk 0:00:24.1]} 23. Nxc2 {[%clk 0:00:43.9]} 23... dxc2 {[%clk
0:00:25]} 24. Bd3 {[%clk 0:00:43.4]} 24... Bb6 {[%clk 0:00:18.1]} 25. Bxc2
{[%clk 0:00:40.3]} 25... Rxa1 {[%clk 0:00:17.9]} 26. Bxa1 {[%clk 0:00:41.2]}
26... Bd5 {[%clk 0:00:15.1]} 27. Bc3 {[%clk 0:00:39.7]} 27... Bc4 {[%clk
0:00:14.8]} 28. d3 {[%clk 0:00:23.3]} 28... Bxb5 {[%clk 0:00:14.8]} 29. Bd2
{[%clk 0:00:22]} 29... Bd4 {[%clk 0:00:14.1]} 30. Be3 {[%clk 0:00:19.1]} 30...
Bxe5 {[%clk 0:00:14.2]} 31. Rd1 {[%clk 0:00:15.8]} 31... Rc8 {[%clk 0:00:11.5]}
32. Bb1 {[%clk 0:00:12.8]} 32... Bd6 {[%clk 0:00:09.1]} 33. Bd2 {[%clk
0:00:11.4]} 33... Ba4 {[%clk 0:00:09.5]} 34. Re1 {[%clk 0:00:10.7]} 34... Bb5
{[%clk 0:00:08.7]} 35. g3 {[%clk 0:00:10.3]} 35... Ra8 {[%clk 0:00:08.8]} 36.
Rc1 {[%clk 0:00:08.1]} 36... Bc6 {[%clk 0:00:07.4]} 37. Bc2 {[%clk 0:00:06]}
37... Ra2 {[%clk 0:00:07]} 38. Bc3 {[%clk 0:00:05.9]} 38... Ra3 {[%clk
0:00:06.1]} 39. Bd1 {[%clk 0:00:04.3]} 39... Ra2 {[%clk 0:00:03.9]} 40. Kf1
{[%clk 0:00:02.9]} 40... g5 {[%clk 0:00:03.3]} 41. Ke1 {[%clk 0:00:03.2]} 41...
g6 {[%clk 0:00:03.4]} 42. Bd2 {[%clk 0:00:03.7]} 42... h5 {[%clk 0:00:03.6]} 43.
Bxg5 {[%clk 0:00:03.2]} 43... Bxb4+ {[%clk 0:00:02.2]} 44. Kf1 {[%clk
0:00:03.9]} 44... Bd6 {[%clk 0:00:02.8]} 45. Be3 {[%clk 0:00:04.1]} 45... Kf7
{[%clk 0:00:03]} 46. Bb3 {[%clk 0:00:04.6]} 46... Rb2 {[%clk 0:00:02.9]} 47. Bd1
{[%clk 0:00:04.9]} 47... Bd5 {[%clk 0:00:03.1]} 48. h4 {[%clk 0:00:05.4]} 48...
Ra2 {[%clk 0:00:02.8]} 49. Rc2 {[%clk 0:00:05.8]} 49... Ra1 {[%clk 0:00:02.7]}
50. Ke2 {[%clk 0:00:06.4]} 50... Ra3 {[%clk 0:00:03.4]} 51. Rb2 {[%clk 0:00:06]}
51... Ra1 {[%clk 0:00:03.8]} 52. Rd2 {[%clk 0:00:06]} 52... Ke7 {[%clk
0:00:04.2]} 53. Bd4 {[%clk 0:00:06.1]} 53... Rb1 {[%clk 0:00:04]} 54. Bc2 {[%clk
0:00:05.7]} 54... Rc1 {[%clk 0:00:03.8]} 55. Be3 {[%clk 0:00:06.2]} 55... Rh1
{[%clk 0:00:03.9]} 56. Bg5+ {[%clk 0:00:06.4]} 56... Kf7 {[%clk 0:00:03.6]} 57.
Rd1 {[%clk 0:00:06.9]} 57... Rxd1 {[%clk 0:00:02.4]} 58. Bxd1 {[%clk 0:00:06.7]}
58... Bc6 {[%clk 0:00:03.3]} 59. Be3 {[%clk 0:00:05.9]} 59... Be5 {[%clk
0:00:03.6]} 60. Bb3 {[%clk 0:00:05.9]} 60... Bf6 {[%clk 0:00:04]} 61. Bc4 {[%clk
0:00:06.2]} 61... Ke7 {[%clk 0:00:04.5]} 62. Bc5+ {[%clk 0:00:06]} 62... d6
{[%clk 0:00:04.1]} 63. Ba3 {[%clk 0:00:06.2]} 63... Kd7 {[%clk 0:00:03.5]} 64.
Ke3 {[%clk 0:00:05.5]} 64... Bc3 {[%clk 0:00:03.5]} 65. Ke2 {[%clk 0:00:04.6]}
65... Bd4 {[%clk 0:00:03.6]} 66. Bc1 {[%clk 0:00:04.4]} 66... d5 {[%clk
0:00:03.7]} 67. Bb3 {[%clk 0:00:04.5]} 67... Bb5 {[%clk 0:00:04.1]} 68. Be3
{[%clk 0:00:04.9]} 68... Bf6 {[%clk 0:00:04.4]} 69. Kd2 {[%clk 0:00:04.1]} 69...
Kd6 {[%clk 0:00:05]} 70. d4 {[%clk 0:00:04.2]} 70... e5 {[%clk 0:00:03.8]} 71.
dxe5+ {[%clk 0:00:04.1]} 71... Bxe5 {[%clk 0:00:04.5]} 72. Bc2 {[%clk
0:00:04.6]} 72... d4 {[%clk 0:00:03.3]} 73. Bg5 {[%clk 0:00:04.6]} 73... Be8
{[%clk 0:00:03.7]} 74. Be4 {[%clk 0:00:04.4]} 74... Bf7 {[%clk 0:00:03.8]} 75.
Bh6 {[%clk 0:00:03.9]} 75... Kc5 {[%clk 0:00:04]} 76. Bf8+ {[%clk 0:00:03.9]}
76... Bd6 {[%clk 0:00:03.9]} 77. Bg7 {[%clk 0:00:03.7]} 77... Bc7 {[%clk
0:00:03.7]} 78. Kd3 {[%clk 0:00:03.7]} 78... Bc4+ {[%clk 0:00:03.2]} 79. Kc2
{[%clk 0:00:03.8]} 79... Bf7 {[%clk 0:00:02.9]} 80. Kd3 {[%clk 0:00:04.1]} 80...
Bc4+ {[%clk 0:00:02.4]} 81. Kd2 {[%clk 0:00:04.7]} 81... Bf7 {[%clk 0:00:03.1]}
82. Bf8+ {[%clk 0:00:05]} 82... Bd6 {[%clk 0:00:03.5]} 83. Bg7 {[%clk
0:00:05.2]} 83... Bc7 {[%clk 0:00:03.7]} 1/2-1/2

[Event "Late-Titled-Tuesday-Blitz-June-18-2024"]
[Site "Chess.com"]
[Date "2024.06.18"]
[Round "7"]
[White "ansko1999"]
[Black "KNVB"]
[Result "0-1"]
[WhiteElo "2599"]
[BlackElo "2787"]
[TimeControl "180+1"]
[EndTime "15:21:22 PDT"]
[Termination "KNVB won by resignation"]

1. b3 {[%clk 0:02:55.2]} 1... e5 {[%clk 0:03:00.1]} 2. Bb2 {[%clk 0:02:52.8]}
2... Nc6 {[%clk 0:03:01]} 3. e4 {[%clk 0:02:53]} 3... Nf6 {[%clk 0:02:59.8]} 4.
Nc3 {[%clk 0:02:53.2]} 4... Bc5 {[%clk 0:02:57.9]} 5. Qe2 {[%clk 0:02:47.1]}
5... Nd4 {[%clk 0:02:52]} 6. Qd1 {[%clk 0:02:46.2]} 6... d5 {[%clk 0:02:39.4]}
7. exd5 {[%clk 0:02:39.4]} 7... Bf5 {[%clk 0:02:32]} 8. d3 {[%clk 0:02:29]} 8...
Nxd5 {[%clk 0:02:32.1]} 9. Nxd5 {[%clk 0:02:28.8]} 9... Qxd5 {[%clk 0:02:33]}
10. Ne2 {[%clk 0:02:19.5]} 10... O-O-O {[%clk 0:01:05.6]} 11. Ng3 {[%clk
0:02:06.2]} 11... Bg6 {[%clk 0:01:02.6]} 12. Qd2 {[%clk 0:01:48.6]} 12... Rhe8
{[%clk 0:00:09.4]} 13. O-O-O {[%clk 0:01:44.5]} 13... f5 {[%clk 0:00:08.5]} 14.
Kb1 {[%clk 0:01:19.6]} 14... Kb8 {[%clk 0:00:07.6]} 15. f3 {[%clk 0:01:12.2]}
15... Re6 {[%clk 0:00:05.4]} 16. h4 {[%clk 0:01:07.3]} 16... h5 {[%clk
0:00:03.3]} 17. Qg5 {[%clk 0:01:04.1]} 17... Be7 {[%clk 0:00:03.2]} 18. Qd2
{[%clk 0:00:59.7]} 18... Rc6 {[%clk 0:00:02.4]} 19. Rc1 {[%clk 0:00:57.8]} 19...
Bf6 {[%clk 0:00:01.4]} 20. Be2 {[%clk 0:00:38.6]} 20... Bf7 {[%clk 0:00:01.7]}
21. f4 {[%clk 0:00:30.8]} 21... e4 {[%clk 0:00:01.4]} 22. dxe4 {[%clk
0:00:25.7]} 22... fxe4 {[%clk 0:00:02.3]} 23. Rhd1 {[%clk 0:00:10.5]} 23... Nxe2
{[%clk 0:00:02.6]} 24. Qxe2 {[%clk 0:00:09.4]} 24... Qc5 {[%clk 0:00:02.6]} 25.
Nxe4 {[%clk 0:00:06.9]} 25... Qf8 {[%clk 0:00:02.4]} 26. Nxf6 {[%clk 0:00:06.4]}
26... gxf6 {[%clk 0:00:02.7]} 27. Rxd8+ {[%clk 0:00:06.2]} 27... Qxd8 {[%clk
0:00:03.6]} 28. Rd1 {[%clk 0:00:06.6]} 28... Rd6 {[%clk 0:00:04.1]} 29. Re1
{[%clk 0:00:05.6]} 29... b6 {[%clk 0:00:03.8]} 30. Bc1 {[%clk 0:00:04.7]} 30...
Bg6 {[%clk 0:00:04.2]} 31. Qe7 {[%clk 0:00:04.4]} 31... Qxe7 {[%clk 0:00:03.8]}
32. Rxe7 {[%clk 0:00:05.3]} 32... Rc6 {[%clk 0:00:04.7]} 33. Re2 {[%clk
0:00:04.4]} 33... Kc8 {[%clk 0:00:03.5]} 34. Bb2 {[%clk 0:00:04.9]} 34... Kd7
{[%clk 0:00:03.6]} 35. g3 {[%clk 0:00:05.1]} 35... Rd6 {[%clk 0:00:03.7]} 36.
Kc1 {[%clk 0:00:04.9]} 36... Rc6 {[%clk 0:00:01.8]} 37. Rd2+ {[%clk 0:00:05]}
37... Ke7 {[%clk 0:00:02.4]} 38. Re2+ {[%clk 0:00:05.2]} 38... Kf7 {[%clk
0:00:03.1]} 39. Bd4 {[%clk 0:00:05.5]} 39... Rd6 {[%clk 0:00:03.3]} 40. Bc3
{[%clk 0:00:04.7]} 40... c5 {[%clk 0:00:03.3]} 41. a4 {[%clk 0:00:04.7]} 41...
Bf5 {[%clk 0:00:03]} 42. Rd2 {[%clk 0:00:04.6]} 42... Re6 {[%clk 0:00:03.5]} 43.
Rd7+ {[%clk 0:00:04.7]} 43... Kg6 {[%clk 0:00:03.3]} 44. Rxa7 {[%clk 0:00:04.9]}
44... Re3 {[%clk 0:00:03.9]} 45. Bd2 {[%clk 0:00:03.8]} 45... Rxg3 {[%clk
0:00:04.2]} 46. Rb7 {[%clk 0:00:04.2]} 46... Rg1+ {[%clk 0:00:02.8]} 47. Kb2
{[%clk 0:00:04.6]} 47... Rg2 {[%clk 0:00:03.7]} 48. Kc3 {[%clk 0:00:04.6]} 48...
Rg3+ {[%clk 0:00:02.9]} 49. Kb2 {[%clk 0:00:05.2]} 49... Rg2 {[%clk 0:00:03.1]}
50. Kc1 {[%clk 0:00:04]} 50... Rh2 {[%clk 0:00:03.1]} 51. Rxb6 {[%clk
0:00:03.5]} 51... Rxh4 {[%clk 0:00:03.5]} 52. Bc3 {[%clk 0:00:03.8]} 52... Be4
{[%clk 0:00:01.5]} 53. Rxf6+ {[%clk 0:00:04]} 53... Kh7 {[%clk 0:00:02.3]} 54.
Rf7+ {[%clk 0:00:03.7]} 54... Kh6 {[%clk 0:00:02.3]} 55. Rf6+ {[%clk 0:00:03.5]}
55... Kh7 {[%clk 0:00:02.8]} 56. Re6 {[%clk 0:00:03.6]} 56... Rh1+ {[%clk
0:00:01.7]} 57. Kd2 {[%clk 0:00:03.4]} 57... Bf5 {[%clk 0:00:02.4]} 58. Rf6
{[%clk 0:00:03.2]} 58... Rh2+ {[%clk 0:00:02.3]} 59. Ke3 {[%clk 0:00:03.5]}
59... Bxc2 {[%clk 0:00:02.9]} 60. a5 {[%clk 0:00:03.5]} 60... Rh3+ {[%clk
0:00:02]} 61. Kd2 {[%clk 0:00:03.4]} 61... Bxb3 {[%clk 0:00:02.5]} 62. a6 {[%clk
0:00:03.8]} 62... Rh2+ {[%clk 0:00:02.2]} 63. Ke3 {[%clk 0:00:03.7]} 63... Ra2
{[%clk 0:00:03.1]} 64. a7 {[%clk 0:00:03.5]} 64... Rxa7 {[%clk 0:00:02.5]} 65.
Rc6 {[%clk 0:00:03.2]} 65... Re7+ {[%clk 0:00:01.6]} 66. Be5 {[%clk 0:00:02.7]}
66... h4 {[%clk 0:00:01.5]} 67. Rxc5 {[%clk 0:00:02.4]} 67... h3 {[%clk
0:00:01.9]} 68. Rc1 {[%clk 0:00:02.7]} 68... Be6 {[%clk 0:00:01.9]} 69. Rh1
{[%clk 0:00:02.7]} 69... Kg6 {[%clk 0:00:01.5]} 70. Rg1+ {[%clk 0:00:02.4]}
70... Kh6 {[%clk 0:00:02]} 71. Bf6 {[%clk 0:00:01]} 71... Rb7 {[%clk 0:00:01.4]}
72. Bg5+ {[%clk 0:00:01.9]} 72... Kh5 {[%clk 0:00:01.7]} 73. Bf6 {[%clk
0:00:01.8]} 73... Bg4 {[%clk 0:00:02.1]} 74. Rg3 {[%clk 0:00:01.7]} 74... Rb3+
{[%clk 0:00:02.4]} 75. Kf2 {[%clk 0:00:01.7]} 75... Rb6 {[%clk 0:00:02.6]} 76.
Kg1 {[%clk 0:00:02]} 76... Rxf6 {[%clk 0:00:02.8]} 77. Kh2 {[%clk 0:00:02.3]}
77... Rxf4 {[%clk 0:00:03.3]} 78. Rc3 {[%clk 0:00:02.3]} 78... Rf2+ {[%clk
0:00:03]} 79. Kg3 {[%clk 0:00:02.9]} 79... Rg2+ {[%clk 0:00:03.3]} 80. Kf4
{[%clk 0:00:03.4]} 80... Kh4 {[%clk 0:00:03.8]} 81. Rc8 {[%clk 0:00:03.3]} 81...
Rf2+ {[%clk 0:00:04.4]} 82. Ke3 {[%clk 0:00:03.8]} 82... Rf3+ {[%clk 0:00:05.1]}
83. Ke4 {[%clk 0:00:04.1]} 83... Bxc8 {[%clk 0:00:05.1]} 84. Kxf3 {[%clk
0:00:03.7]} 84... Bb7+ {[%clk 0:00:05.9]} 85. Kf2 {[%clk 0:00:04.1]} 85... h2
{[%clk 0:00:06.4]} 86. Ke3 {[%clk 0:00:04.3]} 86... h1=Q {[%clk 0:00:06.9]} 87.
Kd4 {[%clk 0:00:05.2]} 87... Qd5+ {[%clk 0:00:07.3]} 0-1